[Event "Early-Titled-Tuesday-Blitz-August-29-2023"]
[Site "Chess.com"]
[Date "2023.08.29"]
[Round "7"]
[White "MikeSailer"]
[Black "knightinshiningarmour16"]
[Result "0-1"]
[WhiteElo "2167"]
[BlackElo "2123"]
[TimeControl "180+1"]
[EndTime "9:17:17 PDT"]
[Termination "knightinshiningarmour16 won on time"]

1. e4 {[%clk 0:03:00]} 1... c6 {[%clk 0:02:59.8]} 2. d4 {[%clk 0:02:55]} 2... d5
{[%clk 0:03:00.6]} 3. e5 {[%clk 0:02:55.5]} 3... Bf5 {[%clk 0:02:59.8]} 4. Nc3
{[%clk 0:02:56.3]} 4... e6 {[%clk 0:02:59.7]} 5. g4 {[%clk 0:02:56.7]} 5... Bg6
{[%clk 0:02:58.8]} 6. h4 {[%clk 0:02:57.4]} 6... h5 {[%clk 0:02:58.3]} 7. Nge2
{[%clk 0:02:57.6]} 7... hxg4 {[%clk 0:02:58]} 8. Nf4 {[%clk 0:02:58.5]} 8... Bf5
{[%clk 0:02:57.8]} 9. h5 {[%clk 0:02:52.7]} 9... g6 {[%clk 0:02:20.1]} 10. h6
{[%clk 0:02:28.7]} 10... g5 {[%clk 0:02:09.9]} 11. Nh5 {[%clk 0:02:03.4]} 11...
Rxh6 {[%clk 0:02:08.5]} 12. Be2 {[%clk 0:01:53.7]} 12... c5 {[%clk 0:01:21]} 13.
Bxg4 {[%clk 0:01:21.8]} 13... Bxg4 {[%clk 0:01:15.5]} 14. Qxg4 {[%clk
0:01:20.6]} 14... Rg6 {[%clk 0:01:14.9]} 15. Be3 {[%clk 0:00:59]} 15... cxd4
{[%clk 0:01:13.5]} 16. Bxd4 {[%clk 0:00:59.3]} 16... Nc6 {[%clk 0:01:13.6]} 17.
O-O-O {[%clk 0:00:59.3]} 17... Qa5 {[%clk 0:01:05.6]} 18. Nf6+ {[%clk
0:00:21.5]} 18... Nxf6 {[%clk 0:01:04.2]} 19. exf6 {[%clk 0:00:21.8]} 19...
O-O-O {[%clk 0:00:59.6]} 20. Rh7 {[%clk 0:00:16.3]} 20... Nxd4 {[%clk
0:00:46.5]} 21. Qxd4 {[%clk 0:00:14.4]} 21... Bc5 {[%clk 0:00:45.3]} 22. Qe5
{[%clk 0:00:11.2]} 22... Bd6 {[%clk 0:00:22.8]} 23. Qe2 {[%clk 0:00:07.3]} 23...
Qc7 {[%clk 0:00:19.9]} 24. Rdh1 {[%clk 0:00:03.5]} 24... Bf4+ {[%clk 0:00:19.6]}
25. Kb1 {[%clk 0:00:04.1]} 25... a6 {[%clk 0:00:19.8]} 26. Rh8 {[%clk
0:00:04.4]} 26... Kb8 {[%clk 0:00:17.6]} 27. Rxd8+ {[%clk 0:00:05.1]} 27... Qxd8
{[%clk 0:00:18.5]} 28. Rh7 {[%clk 0:00:03.5]} 28... Qxf6 {[%clk 0:00:19]} 29.
Qf1 {[%clk 0:00:03]} 29... Ka7 {[%clk 0:00:19.3]} 30. Qh1 {[%clk 0:00:03.5]}
30... d4 {[%clk 0:00:19.7]} 31. f3 {[%clk 0:00:04.4]} 31... dxc3 {[%clk
0:00:19.7]} 32. bxc3 {[%clk 0:00:05.3]} 32... Qxc3 {[%clk 0:00:19.6]} 33. Qg1+
{[%clk 0:00:06.2]} 33... Be3 {[%clk 0:00:18.2]} 34. Qg4 {[%clk 0:00:06.8]} 34...
Bd4 {[%clk 0:00:17.2]} 35. Kc1 {[%clk 0:00:06.7]} 35... Rf6 {[%clk 0:00:15.1]}
36. Rh8 {[%clk 0:00:06.2]} 36... Rxf3 {[%clk 0:00:14.7]} 37. Qxf3 {[%clk
0:00:04.1]} 37... Qxf3 {[%clk 0:00:13.5]} 0-1

[Event "Early-Titled-Tuesday-Blitz-August-29-2023"]
[Site "Chess.com"]
[Date "2023.08.29"]
[Round "7"]
[White "assezde36"]
[Black "DrDreBeats"]
[Result "0-1"]
[WhiteElo "2792"]
[BlackElo "2617"]
[TimeControl "180+1"]
[EndTime "9:17:18 PDT"]
[Termination "DrDreBeats won on time"]

1. e4 {[%clk 0:02:57.5]} 1... d5 {[%clk 0:02:59.7]} 2. exd5 {[%clk 0:02:55.4]}
2... Qxd5 {[%clk 0:03:00.4]} 3. Nf3 {[%clk 0:02:54.4]} 3... Bg4 {[%clk
0:02:59.8]} 4. Be2 {[%clk 0:02:51.9]} 4... Nc6 {[%clk 0:02:59.1]} 5. d4 {[%clk
0:02:42.7]} 5... O-O-O {[%clk 0:02:58.6]} 6. Be3 {[%clk 0:02:42.8]} 6... e5
{[%clk 0:02:56]} 7. c4 {[%clk 0:02:35.7]} 7... Qa5+ {[%clk 0:02:55.9]} 8. Bd2
{[%clk 0:02:35.1]} 8... Qa6 {[%clk 0:02:56]} 9. d5 {[%clk 0:02:34.1]} 9... Bxf3
{[%clk 0:02:53.8]} 10. Bxf3 {[%clk 0:02:18.6]} 10... Nd4 {[%clk 0:02:53.9]} 11.
b3 {[%clk 0:02:17]} 11... Qg6 {[%clk 0:02:53.5]} 12. O-O {[%clk 0:01:56.9]}
12... Nc2 {[%clk 0:02:45.8]} 13. Bh5 {[%clk 0:01:38.3]} 13... Qd3 {[%clk
0:02:44.9]} 14. Be2 {[%clk 0:01:38.4]} 14... Qg6 {[%clk 0:02:40.8]} 15. Nc3
{[%clk 0:01:21]} 15... Nxa1 {[%clk 0:02:40.1]} 16. Qxa1 {[%clk 0:01:21.9]} 16...
Bc5 {[%clk 0:02:35.8]} 17. Na4 {[%clk 0:01:16.9]} 17... Bd4 {[%clk 0:02:35.6]}
18. Bc3 {[%clk 0:01:17.5]} 18... Bxc3 {[%clk 0:02:09.4]} 19. Qxc3 {[%clk
0:01:18.4]} 19... Nf6 {[%clk 0:02:06]} 20. Qa5 {[%clk 0:01:09.7]} 20... Kb8
{[%clk 0:02:02.6]} 21. Nc5 {[%clk 0:01:09.7]} 21... Nd7 {[%clk 0:01:59.3]} 22.
b4 {[%clk 0:01:01.4]} 22... Qb6 {[%clk 0:01:57.8]} 23. Qa3 {[%clk 0:00:59.4]}
23... a5 {[%clk 0:01:49.8]} 24. Nxd7+ {[%clk 0:00:45.2]} 24... Rxd7 {[%clk
0:01:49.1]} 25. bxa5 {[%clk 0:00:46.1]} 25... Qd4 {[%clk 0:01:46.1]} 26. Rb1
{[%clk 0:00:44.2]} 26... Rd6 {[%clk 0:01:31.1]} 27. Qb3 {[%clk 0:00:35.2]} 27...
b6 {[%clk 0:01:27.6]} 28. Bf1 {[%clk 0:00:32.7]} 28... Rf6 {[%clk 0:01:25.3]}
29. Rb2 {[%clk 0:00:31.6]} 29... Qc5 {[%clk 0:01:14.9]} 30. a6 {[%clk
0:00:20.4]} 30... Ka7 {[%clk 0:01:14.2]} 31. Qg3 {[%clk 0:00:20.7]} 31... Rf4
{[%clk 0:00:51.2]} 32. Qxg7 {[%clk 0:00:19.1]} 32... Re8 {[%clk 0:00:51.3]} 33.
Qxh7 {[%clk 0:00:15.6]} 33... Qd4 {[%clk 0:00:50.9]} 34. Qc2 {[%clk 0:00:15.3]}
34... e4 {[%clk 0:00:41]} 35. g3 {[%clk 0:00:15.6]} 35... Rf6 {[%clk 0:00:40]}
36. c5 {[%clk 0:00:15.8]} 36... Re7 {[%clk 0:00:31.6]} 37. Kg2 {[%clk 0:00:12]}
37... e3 {[%clk 0:00:30.6]} 38. cxb6+ {[%clk 0:00:12.1]} 38... Rxb6 {[%clk
0:00:29.6]} 39. Rxb6 {[%clk 0:00:11.3]} 39... Qxd5+ {[%clk 0:00:26.8]} 40. f3
{[%clk 0:00:05.4]} 40... cxb6 {[%clk 0:00:21.1]} 41. Be2 {[%clk 0:00:05.9]}
41... Qd2 {[%clk 0:00:20.4]} 42. Qc4 {[%clk 0:00:06.4]} 42... Rd7 {[%clk
0:00:18.8]} 43. g4 {[%clk 0:00:05]} 43... Qe1 {[%clk 0:00:16]} 44. Kh3 {[%clk
0:00:02.7]} 44... f6 {[%clk 0:00:15.3]} 45. g5 {[%clk 0:00:01.4]} 45... Rh7+
{[%clk 0:00:15.2]} 0-1

[Event "Early-Titled-Tuesday-Blitz-August-29-2023"]
[Site "Chess.com"]
[Date "2023.08.29"]
[Round "7"]
[White "ChEsper99"]
[Black "ItsCheckM8Mate"]
[Result "0-1"]
[WhiteElo "2133"]
[BlackElo "2338"]
[TimeControl "180+1"]
[EndTime "9:17:23 PDT"]
[Termination "ItsCheckM8Mate won on time"]

1. e4 {[%clk 0:03:00.9]} 1... c6 {[%clk 0:02:59.4]} 2. Nc3 {[%clk 0:02:58.9]}
2... d5 {[%clk 0:02:59.2]} 3. Nf3 {[%clk 0:02:59.7]} 3... Bg4 {[%clk 0:02:58.5]}
4. h3 {[%clk 0:02:59.9]} 4... Bxf3 {[%clk 0:02:58.4]} 5. Qxf3 {[%clk 0:03:00.8]}
5... e6 {[%clk 0:02:58.8]} 6. d4 {[%clk 0:02:55.9]} 6... dxe4 {[%clk 0:02:57.1]}
7. Qe3 {[%clk 0:02:56]} 7... Nf6 {[%clk 0:02:40]} 8. Be2 {[%clk 0:02:55.6]} 8...
Nbd7 {[%clk 0:02:33.1]} 9. O-O {[%clk 0:02:49.5]} 9... Be7 {[%clk 0:02:24.3]}
10. Nxe4 {[%clk 0:02:24.2]} 10... O-O {[%clk 0:02:21.2]} 11. c3 {[%clk
0:02:18.3]} 11... Nxe4 {[%clk 0:02:16.7]} 12. Qxe4 {[%clk 0:02:19.2]} 12... Nf6
{[%clk 0:02:17.1]} 13. Qf3 {[%clk 0:02:13.8]} 13... Qd5 {[%clk 0:02:16.2]} 14.
Be3 {[%clk 0:02:11.3]} 14... a5 {[%clk 0:02:08.8]} 15. c4 {[%clk 0:02:01.5]}
15... Qxf3 {[%clk 0:02:04.1]} 16. Bxf3 {[%clk 0:02:02.4]} 16... Rfd8 {[%clk
0:01:59.4]} 17. Rfd1 {[%clk 0:01:56.6]} 17... Bf8 {[%clk 0:01:50.7]} 18. g4
{[%clk 0:01:42.2]} 18... h6 {[%clk 0:01:45.2]} 19. h4 {[%clk 0:01:40]} 19... Be7
{[%clk 0:01:41.8]} 20. Kg2 {[%clk 0:01:36.1]} 20... a4 {[%clk 0:01:37.2]} 21.
Kh3 {[%clk 0:01:27.3]} 21... Nd7 {[%clk 0:01:28.1]} 22. Bf4 {[%clk 0:01:17.4]}
22... Bf6 {[%clk 0:01:18.3]} 23. Rac1 {[%clk 0:01:05.6]} 23... e5 {[%clk
0:01:09.9]} 24. dxe5 {[%clk 0:00:28.2]} 24... Nxe5 {[%clk 0:01:09.7]} 25. Bxe5
{[%clk 0:00:25.2]} 25... Bxe5 {[%clk 0:01:09.3]} 26. Rxd8+ {[%clk 0:00:19.9]}
26... Rxd8 {[%clk 0:01:08.8]} 27. Rd1 {[%clk 0:00:20]} 27... Bd4 {[%clk
0:01:01.4]} 28. Kg2 {[%clk 0:00:15.9]} 28... Kf8 {[%clk 0:00:54.9]} 29. Rd2
{[%clk 0:00:14.6]} 29... Ke7 {[%clk 0:00:52.4]} 30. Bd1 {[%clk 0:00:13.8]} 30...
a3 {[%clk 0:00:46.3]} 31. bxa3 {[%clk 0:00:11.9]} 31... c5 {[%clk 0:00:45.7]}
32. f4 {[%clk 0:00:05.8]} 32... Ra8 {[%clk 0:00:44.7]} 33. Rd3 {[%clk
0:00:05.7]} 33... Kd6 {[%clk 0:00:42.9]} 34. Kf3 {[%clk 0:00:06]} 34... Re8
{[%clk 0:00:40.9]} 35. Rb3 {[%clk 0:00:04.6]} 35... Kc7 {[%clk 0:00:39.5]} 36.
Bc2 {[%clk 0:00:04.7]} 36... Re1 {[%clk 0:00:37.2]} 37. Be4 {[%clk 0:00:05.2]}
37... b6 {[%clk 0:00:37]} 38. a4 {[%clk 0:00:04.8]} 38... Rf1+ {[%clk 0:00:28]}
39. Kg3 {[%clk 0:00:03.6]} 39... Rg1+ {[%clk 0:00:23]} 40. Kf3 {[%clk
0:00:03.9]} 40... Rf1+ {[%clk 0:00:23.1]} 41. Kg3 {[%clk 0:00:04.4]} 41... Ra1
{[%clk 0:00:21.4]} 42. a5 {[%clk 0:00:04.1]} 42... bxa5 {[%clk 0:00:18.5]} 43.
Rb7+ {[%clk 0:00:04.3]} 43... Kd6 {[%clk 0:00:18.6]} 44. Rxf7 {[%clk 0:00:05.2]}
44... Rxa2 {[%clk 0:00:18.5]} 45. g5 {[%clk 0:00:05.2]} 45... hxg5 {[%clk
0:00:17.3]} 46. fxg5 {[%clk 0:00:05.1]} 46... Ke5 {[%clk 0:00:16.7]} 47. Bd5
{[%clk 0:00:04.6]} 47... Kd6 {[%clk 0:00:16.6]} 48. h5 {[%clk 0:00:04.3]} 48...
a4 {[%clk 0:00:16.6]} 49. h6 {[%clk 0:00:04.5]} 49... gxh6 {[%clk 0:00:16.4]}
50. gxh6 {[%clk 0:00:05.4]} 50... a3 {[%clk 0:00:15.9]} 51. h7 {[%clk
0:00:05.6]} 51... Ra1 {[%clk 0:00:15.9]} 52. Be4 {[%clk 0:00:02.8]} 52... a2
{[%clk 0:00:15]} 53. Rf5 {[%clk 0:00:01.1]} 53... Rg1+ {[%clk 0:00:14.4]} 54.
Kf3 {[%clk 0:00:01.3]} 54... a1=Q {[%clk 0:00:14.6]} 55. Rd5+ {[%clk 0:00:02]}
55... Ke7 {[%clk 0:00:14.6]} 0-1

[Event "Early-Titled-Tuesday-Blitz-August-29-2023"]
[Site "Chess.com"]
[Date "2023.08.29"]
[Round "7"]
[White "wadsy27"]
[Black "KNVB"]
[Result "0-1"]
[WhiteElo "2605"]
[BlackElo "2794"]
[TimeControl "180+1"]
[EndTime "9:17:24 PDT"]
[Termination "KNVB won on time"]

1. Nf3 {[%clk 0:03:00.9]} 1... d5 {[%clk 0:03:00.2]} 2. g3 {[%clk 0:02:59.8]}
2... c6 {[%clk 0:03:00.7]} 3. Bg2 {[%clk 0:02:58.8]} 3... Bf5 {[%clk 0:03:01.2]}
4. c4 {[%clk 0:02:59.1]} 4... e6 {[%clk 0:03:01.3]} 5. Qb3 {[%clk 0:02:56.1]}
5... Qb6 {[%clk 0:03:01.3]} 6. d3 {[%clk 0:02:53.7]} 6... Nd7 {[%clk 0:03:01]}
7. Be3 {[%clk 0:02:52.2]} 7... Bc5 {[%clk 0:03:00.7]} 8. d4 {[%clk 0:02:35.1]}
8... Be7 {[%clk 0:02:21.5]} 9. c5 {[%clk 0:02:22.1]} 9... Qxb3 {[%clk
0:02:13.3]} 10. axb3 {[%clk 0:02:23]} 10... Bxb1 {[%clk 0:02:04]} 11. Rxb1
{[%clk 0:02:22.5]} 11... f5 {[%clk 0:01:24.2]} 12. b4 {[%clk 0:02:20.2]} 12...
a6 {[%clk 0:01:24.8]} 13. Nd2 {[%clk 0:02:14.4]} 13... Bd8 {[%clk 0:00:42.5]}
14. Nb3 {[%clk 0:02:11.7]} 14... Bc7 {[%clk 0:00:42.4]} 15. Bf4 {[%clk
0:02:03.9]} 15... Kd8 {[%clk 0:00:41.7]} 16. h4 {[%clk 0:01:56.6]} 16... Ngf6
{[%clk 0:00:36.5]} 17. h5 {[%clk 0:01:53.7]} 17... Rb8 {[%clk 0:00:30.6]} 18.
Na5 {[%clk 0:01:40.3]} 18... Rf8 {[%clk 0:00:20.9]} 19. e3 {[%clk 0:01:31]}
19... e5 {[%clk 0:00:20.2]} 20. dxe5 {[%clk 0:01:30]} 20... Bxe5 {[%clk
0:00:09.2]} 21. Bf3 {[%clk 0:01:00.1]} 21... Kc7 {[%clk 0:00:08.9]} 22. O-O
{[%clk 0:00:48.8]} 22... Rbe8 {[%clk 0:00:08.4]} 23. Nb3 {[%clk 0:00:38.9]}
23... Ne4 {[%clk 0:00:07.7]} 24. Rfd1 {[%clk 0:00:33.1]} 24... Kc8 {[%clk
0:00:07.9]} 25. Nd4 {[%clk 0:00:31.3]} 25... Bc7 {[%clk 0:00:05.5]} 26. Kg2
{[%clk 0:00:27.2]} 26... Ne5 {[%clk 0:00:04.6]} 27. Bxe5 {[%clk 0:00:22.2]}
27... Bxe5 {[%clk 0:00:03.3]} 28. Ne2 {[%clk 0:00:09.9]} 28... Kc7 {[%clk
0:00:02.3]} 29. Nf4 {[%clk 0:00:10.1]} 29... Rf7 {[%clk 0:00:02.3]} 30. Rd3
{[%clk 0:00:04.8]} 30... Bf6 {[%clk 0:00:02.4]} 31. b3 {[%clk 0:00:04.8]} 31...
Rfe7 {[%clk 0:00:02]} 32. Rh1 {[%clk 0:00:04.6]} 32... Rf8 {[%clk 0:00:02.5]}
33. Ne2 {[%clk 0:00:04.1]} 33... Be5 {[%clk 0:00:02.7]} 34. Nd4 {[%clk
0:00:03.9]} 34... Ng5 {[%clk 0:00:02.7]} 35. Be2 {[%clk 0:00:03.2]} 35... Bf6
{[%clk 0:00:02.6]} 36. f4 {[%clk 0:00:02.7]} 36... Bxd4 {[%clk 0:00:02.6]} 37.
Rxd4 {[%clk 0:00:01.6]} 37... Ne4 {[%clk 0:00:02.4]} 38. Bf3 {[%clk 0:00:01.5]}
38... Nf6 {[%clk 0:00:02.6]} 39. Rd3 {[%clk 0:00:01.4]} 39... Rfe8 {[%clk
0:00:03.1]} 40. Re1 {[%clk 0:00:01.6]} 40... Kd7 {[%clk 0:00:03]} 41. Kf2 {[%clk
0:00:02]} 41... Ke6 {[%clk 0:00:03.2]} 42. Rd4 {[%clk 0:00:02.1]} 42... Kf7
{[%clk 0:00:03.7]} 43. Rd3 {[%clk 0:00:02.4]} 43... Ne4+ {[%clk 0:00:04]} 44.
Bxe4 {[%clk 0:00:02]} 44... Rxe4 {[%clk 0:00:04.9]} 45. Rd4 {[%clk 0:00:02.5]}
45... Kf6 {[%clk 0:00:04.3]} 46. Rxe4 {[%clk 0:00:02.1]} 46... Rxe4 {[%clk
0:00:05.2]} 47. g4 {[%clk 0:00:01.7]} 47... fxg4 {[%clk 0:00:05.3]} 48. Kg3
{[%clk 0:00:02.2]} 48... Kf5 {[%clk 0:00:05.5]} 49. h6 {[%clk 0:00:01.9]} 49...
g6 {[%clk 0:00:05.4]} 50. Kh4 {[%clk 0:00:01.6]} 50... Rxb4 {[%clk 0:00:04.7]}
0-1

[Event "Early-Titled-Tuesday-Blitz-August-29-2023"]
[Site "Chess.com"]
[Date "2023.08.29"]
[Round "7"]
[White "crescentmoon2411"]
[Black "jcibarra"]
[Result "1/2-1/2"]
[WhiteElo "3026"]
[BlackElo "2887"]
[TimeControl "180+1"]
[EndTime "9:17:28 PDT"]
[Termination "Game drawn by repetition"]

1. d4 {[%clk 0:02:56.6]} 1... Nf6 {[%clk 0:02:59.4]} 2. c4 {[%clk 0:02:55.8]}
2... d6 {[%clk 0:02:59.4]} 3. Nf3 {[%clk 0:02:53]} 3... g6 {[%clk 0:02:59.2]} 4.
Nc3 {[%clk 0:02:50.9]} 4... Bf5 {[%clk 0:02:59.6]} 5. h3 {[%clk 0:02:47]} 5...
Ne4 {[%clk 0:02:58.8]} 6. Nxe4 {[%clk 0:01:00.2]} 6... Bxe4 {[%clk 0:02:59.7]}
7. Ng5 {[%clk 0:01:00.6]} 7... Bf5 {[%clk 0:02:56.8]} 8. e4 {[%clk 0:00:59.2]}
8... Bd7 {[%clk 0:02:56.6]} 9. h4 {[%clk 0:00:58.6]} 9... h6 {[%clk 0:02:39.4]}
10. Nf3 {[%clk 0:00:55.7]} 10... Bg7 {[%clk 0:02:33.1]} 11. Be2 {[%clk
0:00:48.4]} 11... c5 {[%clk 0:02:31.6]} 12. Be3 {[%clk 0:00:45]} 12... Nc6
{[%clk 0:02:25.4]} 13. d5 {[%clk 0:00:43.7]} 13... Ne5 {[%clk 0:02:18.8]} 14.
Nxe5 {[%clk 0:00:42.7]} 14... Bxe5 {[%clk 0:02:19.3]} 15. Qd2 {[%clk 0:00:42.4]}
15... h5 {[%clk 0:01:59.2]} 16. O-O {[%clk 0:00:41.7]} 16... Bf6 {[%clk
0:01:52.3]} 17. g3 {[%clk 0:00:40.3]} 17... a6 {[%clk 0:01:38.6]} 18. Rab1
{[%clk 0:00:37.3]} 18... b5 {[%clk 0:01:30.2]} 19. b4 {[%clk 0:00:37.2]} 19...
cxb4 {[%clk 0:01:28.5]} 20. Rxb4 {[%clk 0:00:34.3]} 20... a5 {[%clk 0:01:23]}
21. Rbb1 {[%clk 0:00:31.2]} 21... b4 {[%clk 0:01:20.9]} 22. c5 {[%clk
0:00:31.2]} 22... dxc5 {[%clk 0:01:18.3]} 23. Bxc5 {[%clk 0:00:31.7]} 23... O-O
{[%clk 0:01:15.9]} 24. Rfc1 {[%clk 0:00:27.3]} 24... Rc8 {[%clk 0:01:15.1]} 25.
Qe3 {[%clk 0:00:22.8]} 25... Ba4 {[%clk 0:00:45]} 26. Bb6 {[%clk 0:00:18.8]}
26... Rxc1+ {[%clk 0:00:42.8]} 27. Rxc1 {[%clk 0:00:19.7]} 27... Qa8 {[%clk
0:00:42.4]} 28. e5 {[%clk 0:00:15.9]} 28... Bg7 {[%clk 0:00:42.7]} 29. Bf3
{[%clk 0:00:16.3]} 29... Rc8 {[%clk 0:00:17]} 30. Rxc8+ {[%clk 0:00:15.9]} 30...
Qxc8 {[%clk 0:00:17.9]} 31. Bxa5 {[%clk 0:00:15.8]} 31... Qc4 {[%clk 0:00:18.5]}
32. d6 {[%clk 0:00:13]} 32... exd6 {[%clk 0:00:17]} 33. exd6 {[%clk 0:00:13.9]}
33... Bd4 {[%clk 0:00:10.7]} 34. Qe2 {[%clk 0:00:13.9]} 34... Qc5 {[%clk
0:00:08.3]} 35. Bc7 {[%clk 0:00:13.3]} 35... Bd7 {[%clk 0:00:07.4]} 36. Kg2
{[%clk 0:00:13]} 36... Be6 {[%clk 0:00:07.7]} 37. Be4 {[%clk 0:00:09.9]} 37...
Bf6 {[%clk 0:00:04.2]} 38. Bxg6 {[%clk 0:00:07.8]} 38... Bc4 {[%clk 0:00:01.6]}
39. Qxh5 {[%clk 0:00:06.7]} 39... Qc6+ {[%clk 0:00:01.2]} 40. Kh2 {[%clk
0:00:04.5]} 40... fxg6 {[%clk 0:00:01.8]} 41. Qxg6+ {[%clk 0:00:05.4]} 41... Bg7
{[%clk 0:00:02.5]} 42. h5 {[%clk 0:00:05]} 42... Bf7 {[%clk 0:00:01.6]} 43. Qg4
{[%clk 0:00:04.4]} 43... Kh7 {[%clk 0:00:01.7]} 44. Qf5+ {[%clk 0:00:04.2]}
44... Kg8 {[%clk 0:00:02.3]} 45. Qc8+ {[%clk 0:00:04]} 45... Kh7 {[%clk
0:00:02.2]} 46. Qf5+ {[%clk 0:00:03.3]} 46... Kg8 {[%clk 0:00:02.1]} 47. Qg4
{[%clk 0:00:02.5]} 47... Kh7 {[%clk 0:00:01.9]} 48. Qf5+ {[%clk 0:00:01.9]}
1/2-1/2

[Event "Early-Titled-Tuesday-Blitz-August-29-2023"]
[Site "Chess.com"]
[Date "2023.08.29"]
[Round "7"]
[White "masterofpuppets2"]
[Black "Fh2411"]
[Result "1/2-1/2"]
[WhiteElo "2460"]
[BlackElo "2641"]
[TimeControl "180+1"]
[EndTime "9:17:32 PDT"]
[Termination "Game drawn by repetition"]

1. d4 {[%clk 0:03:00.9]} 1... Nf6 {[%clk 0:02:54.5]} 2. c4 {[%clk 0:03:00.9]}
2... e6 {[%clk 0:02:54.7]} 3. Nf3 {[%clk 0:03:01.2]} 3... Bb4+ {[%clk 0:02:55]}
4. Bd2 {[%clk 0:03:01.4]} 4... Qe7 {[%clk 0:02:55.4]} 5. Nc3 {[%clk 0:03:01.5]}
5... O-O {[%clk 0:02:55.7]} 6. g3 {[%clk 0:03:02]} 6... d6 {[%clk 0:02:55.7]} 7.
Bg2 {[%clk 0:03:02.3]} 7... e5 {[%clk 0:02:54.6]} 8. O-O {[%clk 0:03:02.6]} 8...
Bxc3 {[%clk 0:02:46.7]} 9. Bxc3 {[%clk 0:03:02.4]} 9... Nc6 {[%clk 0:02:45.6]}
10. d5 {[%clk 0:02:56.9]} 10... Nb8 {[%clk 0:02:42.6]} 11. Ne1 {[%clk
0:02:55.5]} 11... a5 {[%clk 0:02:39.3]} 12. e4 {[%clk 0:02:54.1]} 12... Nbd7
{[%clk 0:02:39.3]} 13. Nd3 {[%clk 0:02:54.4]} 13... b6 {[%clk 0:02:38.5]} 14. h3
{[%clk 0:02:47.8]} 14... Nc5 {[%clk 0:02:35.2]} 15. Qe2 {[%clk 0:02:38.2]} 15...
Nxd3 {[%clk 0:02:23.4]} 16. Qxd3 {[%clk 0:02:38]} 16... Nd7 {[%clk 0:02:24.1]}
17. f4 {[%clk 0:02:30.9]} 17... Nc5 {[%clk 0:02:21.1]} 18. Qe2 {[%clk
0:02:30.5]} 18... f6 {[%clk 0:02:21.6]} 19. b3 {[%clk 0:02:26.5]} 19... Ba6
{[%clk 0:02:12.1]} 20. Rab1 {[%clk 0:02:13.6]} 20... Rfb8 {[%clk 0:02:09]} 21.
a4 {[%clk 0:02:09.6]} 21... Bb7 {[%clk 0:02:05.6]} 22. f5 {[%clk 0:02:05.7]}
22... c6 {[%clk 0:02:05.3]} 23. g4 {[%clk 0:02:03]} 23... Rc8 {[%clk 0:01:59.5]}
24. h4 {[%clk 0:01:53.3]} 24... Ba6 {[%clk 0:01:59.1]} 25. Qe3 {[%clk 0:01:47]}
25... b5 {[%clk 0:01:53.7]} 26. Bxa5 {[%clk 0:00:53.7]} 26... bxc4 {[%clk
0:01:48.1]} 27. b4 {[%clk 0:00:36.3]} 27... Nxa4 {[%clk 0:01:47]} 28. dxc6
{[%clk 0:00:33.5]} 28... Bb5 {[%clk 0:01:42]} 29. c7 {[%clk 0:00:32.6]} 29...
Rxc7 {[%clk 0:01:15.5]} 30. Bxc7 {[%clk 0:00:31.5]} 30... Qxc7 {[%clk
0:01:16.4]} 31. Rfc1 {[%clk 0:00:31.9]} 31... Rc8 {[%clk 0:00:58.6]} 32. Bf1
{[%clk 0:00:31.3]} 32... Nb6 {[%clk 0:00:55.3]} 33. Ra1 {[%clk 0:00:28.6]} 33...
d5 {[%clk 0:00:55.8]} 34. exd5 {[%clk 0:00:24.1]} 34... Nxd5 {[%clk 0:00:56.7]}
35. Qe4 {[%clk 0:00:23.7]} 35... Nf4 {[%clk 0:00:52.3]} 36. Kh2 {[%clk
0:00:14.3]} 36... h5 {[%clk 0:00:49.1]} 37. Ra5 {[%clk 0:00:13.7]} 37... Qd7
{[%clk 0:00:34.5]} 38. Rc2 {[%clk 0:00:08.1]} 38... hxg4 {[%clk 0:00:30.9]} 39.
Rxb5 {[%clk 0:00:08.1]} 39... Qd1 {[%clk 0:00:19.2]} 40. Rf2 {[%clk 0:00:05.3]}
40... c3 {[%clk 0:00:16.6]} 41. Rc5 {[%clk 0:00:05]} 41... Rd8 {[%clk 0:00:15]}
42. Rxc3 {[%clk 0:00:04.8]} 42... Rd2 {[%clk 0:00:15.6]} 43. Rxd2 {[%clk
0:00:02.7]} 43... Qxd2+ {[%clk 0:00:16.5]} 44. Kg1 {[%clk 0:00:03.2]} 44... Qxc3
{[%clk 0:00:16.5]} 45. Qc4+ {[%clk 0:00:03.2]} 45... Qxc4 {[%clk 0:00:16.2]} 46.
Bxc4+ {[%clk 0:00:04.1]} 46... Kf8 {[%clk 0:00:16.8]} 47. Kf2 {[%clk 0:00:04.1]}
47... Ke7 {[%clk 0:00:17.1]} 48. Kg3 {[%clk 0:00:04.5]} 48... Kd6 {[%clk
0:00:14.9]} 49. Kxg4 {[%clk 0:00:04.9]} 49... Kc6 {[%clk 0:00:14.6]} 50. Kf3
{[%clk 0:00:05.3]} 50... Kb6 {[%clk 0:00:14.4]} 51. Ke4 {[%clk 0:00:05.6]} 51...
Kc6 {[%clk 0:00:14.9]} 52. Kf3 {[%clk 0:00:06]} 52... Kb6 {[%clk 0:00:12]} 53.
Kg4 {[%clk 0:00:06.5]} 53... Kc6 {[%clk 0:00:12.2]} 54. Kf3 {[%clk 0:00:07.1]}
1/2-1/2